[Event "44th Chess Olympiad Women 2022"]
[Site "Chennai"]
[Date "2022.08.09"]
[Round "11.30"]
[White "Kocyigit, Buse Naz"]
[Black "Sovetbekova, Nurai"]
[Result "1-0"]
[ECO "D00"]
[WhiteElo "1991"]
[BlackElo "1693"]
[Annotator "TA"]
[PlyCount "211"]
[EventDate "2022.07.29"]
[EventType "team-tourn"]
[EventCountry "IND"]
[SourceTitle "playchess.com"]
[Source "ChessBase"]
[SourceQuality "1"]
[WhiteTeam "Turkey"]
[BlackTeam "Kyrgyzstan"]
[WhiteTeamCountry "TUR"]
[BlackTeamCountry "KGZ"]
[TimeControl "40/5400+30:1800+30"]

{[%evp 9,211,-13,-14,-14,0,0,0,0,10,0,0,0,0,0,13,11,7,14,8,0,3,-7,11,-19,47,-25,-24,-6,-7,-41,-45,-45,-29,-78,-95,-68,37,37,44,46,62,43,38,32,40,43,37,-53,18,-6,-5,-96,-79,-71,8,-50,-44,-38,-9,-23,0,-15,-16,-35,-6,-230,-230,-470,-348,-340,-294,-418,-417,-410,-415,-415,-412,-411,-359,-411,-278,-313,0,-376,-356,-366,-330,-269,-179,-179,-179,-179,-179,-179,-172,-172,-166,-149,-145,-159,-123,-158,-93,-138,-89,-140,163,-89,-88,-133,-133,-308,-130,-353,-356,-348,-332,-415,-342,-336,-383,-451,-20,-20,748,0,0,0,0,0,0,0,0,0,842,805,886,870,870,689,836,714,726,686,758,752,698,741,885,0,0,0,0,0,0,0,868,672,642,608,597,560,520,491,669,566,652,638,727,0,1753,1725,1287,1194,1150,484,959,942,942,924,914,899,725,392,429,422,900,620,812,766,744,708,750,650,717,174,29974,29976,29988,29989,29992,29993,29994,29995]} 1. d4 {[%emt 0:00:06]} Nf6 {[%emt 0:00:08]} 2. Bg5 {[%emt 0:00:22]} g6 {[%emt 0:00:08]} 3. Bxf6 {[%emt 0:00:09]} exf6 {[%emt 0:00:04]} 4. e3 {[%emt 0:00:09]} d5 {[%emt 0:00:08]} 5. g3 {[%emt 0:01:43]} h5 {[%emt 0:03:24]} 6. h4 {[%emt 0:00:55] D00: 1 d4 d5: Unusual lines.} (6. c4 {feels hotter.} Bb4+ 7. Nd2 Bg4 8. f3) 6... Bd6 {[%emt 0:04:10]} 7. Bg2 {[%emt 0:00:47]} c6 {[%emt 0:01:04]} 8. Nd2 {[%emt 0:06:33] [#] The position is equal.} O-O $146 {[%emt 0:08:05]} ({Predecessor:} 8... Be6 9. Ne2 Nd7 10. b3 Nb6 11. a4 a5 12. Rc1 Kf8 13. Kf1 Qd7 14. c4 Bb4 15. cxd5 cxd5 {1-0 (59) Flom,G (2493)-Bosiocic,M (2611) Batumi 2018}) 9. Ne2 {[%emt 0:06:11]} Be6 {[%emt 0:13:24]} 10. O-O {[%emt 0:04:23]} Nd7 {[%emt 0:01:44]} 11. b3 {[%emt 0:10:26]} f5 {[%emt 0:05:27]} 12. c4 {[%emt 0:00:43]} Nf6 {[%emt 0:02:32]} 13. c5 {[%emt 0:07:31]} Bc7 {[%emt 0:02:11]} 14. Nf3 {[%emt 0:02:38]} Ne4 {[%emt 0:03:38]} 15. Nf4 {[%emt 0:04:25]} Kg7 {[%emt 0:11:52]} 16. Qd3 {[%emt 0:01:47]} Rh8 {[%emt 0:06:37]} (16... Qe7 $11) 17. b4 {[%emt 0:04:47]} (17. Nxe6+ $14 fxe6 18. b4) 17... Bd7 $11 {[%emt 0:03:23]} 18. a4 {[%emt 0:05:08]} f6 {[%emt 0:04:48]} 19. Rfd1 {[%emt 0:16:58]} g5 {[%emt 0:03:37]} 20. Ne2 {[%emt 0:01:19]} Qe8 {[%emt 0:03:44]} 21. Qb3 {[%emt 0:04:07]} (21. a5 $11) 21... Qg6 $17 {[%emt 0:03:39][%cal Of5f4]} 22. b5 {[%emt 0:04:15]} Rab8 {[%emt 0:03:30]} ({Better is} 22... Rae8 $1 $15) 23. a5 $1 $14 {[%emt 0:01:55]} a6 {[%emt 0:01:43]} 24. b6 {[%emt 0:00:24]} Bd8 {[%emt 0:00:17]} 25. hxg5 {[%emt 0:07:38] White is more active.} fxg5 {[%emt 0:01:02][%cal Bf6g5,Bg5g4][%mdl 32]} 26. Ne5 {[%emt 0:00:01][%csl LRd7,LRg6]} Qe6 {[%emt 0:00:35][%cal Oe4c5]} 27. f3 {[%emt 0:00:28]} Nf6 {[%emt 0:00:26]} (27... Nxc5 $2 28. Qc3 $18) 28. Bh3 {[%emt 0:01:21]} (28. Qc2 $14) 28... Qe8 {[%emt 0:03:58]} (28... h4 $15) 29. Nxd7 {[%emt 0:05:57]} Qxd7 {[%emt 0:00:22]} 30. e4 {[%emt 0:00:12]} (30. Rf1 $1 $11) 30... g4 $1 $17 {[%emt 0:01:37]} 31. e5 {[%emt 0:00:10]} Nh7 {[%emt 0:00:59]} (31... gxh3 $17 32. exf6+ Bxf6) 32. fxg4 {[%emt 0:00:29]} (32. Bg2 $11) 32... hxg4 $15 {[%emt 0:00:19]} (32... Ng5 33. Bg2 $11) 33. Bg2 {[%emt 0:00:11]} Ng5 {[%emt 0:00:46] Black wants to play ...Ne6.} 34. Nf4 {[%emt 0:00:31]} Be7 {[%emt 0:04:08]} 35. Qd3 {[%emt 0:01:09][%cal Oe5e6]} Rbf8 {[%emt 0:00:18]} 36. Rf1 {[%emt 0:01:07]} Ne6 {[%emt 0:01:04]} 37. Ne2 $2 {[%emt 0:01:19]} (37. Qd2 $11 {and White stays safe.}) 37... Bg5 $19 {[%emt 0:01:14]} 38. Rae1 $2 {[%emt 0:00:44]} (38. Rxf5 $2 Rxf5 39. Qxf5 Be3+ 40. Kf1 Rf8 41. Qxf8+ Nxf8 $19) (38. Rf4) 38... Qf7 {[%emt 0:00:33]} 39. Nf4 {[%emt 0:00:29]} Bxf4 {[%emt 0:00:51]} 40. gxf4 {[%emt 0:00:06]} (40. Rxf4 $142 Nxf4 41. gxf4) 40... Qh5 {[%emt 0:01:25]} 41. Qg3 {[%emt 0:02:30] Against Qh2+} Qh6 {[%emt 0:12:57]} (41... Nxd4 $2 42. e6 $19) 42. Rd1 {[%emt 0:00:22]} Kf7 {[%emt 0:01:40]} 43. Rd2 {[%emt 0:02:32]} Re8 {[%emt 0:02:34]} 44. Rff2 {[%emt 0:05:24]} Ng7 {[%emt 0:01:16]} 45. Rde2 {[%emt 0:06:36]} Ne6 {[%emt 0:05:30]} 46. Rd2 {[%emt 0:01:33]} Rh7 {[%emt 0:00:21]} 47. Kf1 {[%emt 0:01:36][%cal Bg1f1,Bf1e1,Be1d1,Bd1c2,Bc2b2][%mdl 32]} Reh8 {[%emt 0:00:38]} 48. Ke1 {[%emt 0:01:35]} Qg6 {[%emt 0:00:58][%cal Oh7h1]} 49. Kd1 {[%emt 0:01:01]} Rh4 {[%emt 0:01:07]} 50. Kc2 {[%emt 0:01:55]} R8h5 {[%emt 0:00:38]} 51. Bf1 {[%emt 0:00:51]} Qg8 {[%emt 0:02:41]} 52. Kb2 {[%emt 0:00:45]} Qh8 {[%emt 0:00:42]} 53. Ka2 {[%emt 0:02:26]} Rh6 {[%emt 0:04:09]} 54. Qd3 {[%emt 0:00:51]} Ng7 {[%emt 0:00:35][%cal Be6g7,Bg7h5,Bh5f4,Bf4h3][%mdl 32]} 55. Rfe2 {[%emt 0:02:24]} Ke6 {[%emt 0:00:44]} (55... Rh2 $142 56. Bg2 (56. e6+ $2 Ke7 $19) 56... Ke7) 56. Qb3 {[%emt 0:02:04]} Rh2 {[%emt 0:01:28]} (56... Ke7 $142 $1 57. Qe3 Ne6) 57. Bg2 {[%emt 0:01:15]} (57. Rf2 $142) 57... R2h4 $2 {[%emt 0:01:19][%mdl 8192] [#]} (57... Ke7 $1 $17 {and life is bright.} 58. Qc2 (58. Bxd5 Rxe2 59. Rxe2 cxd5 $17) 58... Qh7) 58. Rc2 $2 {[%emt 0:00:24] [#]} (58. Bxd5+ $1 $18 {[%mdl 512]} cxd5 59. c6) 58... Qd8 $1 $17 {[%emt 0:00:15]} 59. Red2 {[%emt 0:01:13]} Nh5 {[%emt 0:00:32]} 60. Bf1 $2 {[%emt 0:01:09]} (60. Qe3 $17 {was forced.}) 60... Rh7 {[%emt 0:00:47]} (60... Nxf4 $19 {is more deadly. ...Rh1 is the strong threat.} 61. Rd1 Rh2) 61. Rh2 $2 {[%emt 0:01:19] Against Rh1} (61. Rg2 $17 {was worth a try.}) 61... Nxf4 $19 {[%emt 0:00:35]} 62. Rhf2 {[%emt 0:01:05]} Nh3 {[%emt 0:00:31]} 63. Rh2 {[%emt 0:00:46]} Ng5 {[%emt 0:00:20]} 64. Rxh4 {[%emt 0:00:14]} Rxh4 {[%emt 0:00:01]} 65. Bxa6 {[%emt 0:01:00]} Qa8 $2 {[%emt 0:00:41]} ({Black should play} 65... bxa6 $19 66. Rb2 Ne4) 66. Bxb7 $1 $11 {[%emt 0:00:35]} Qxb7 $4 {[%emt 0:00:19][%mdl 8192]} (66... Qxa5+ $11 67. Qa3 Qxa3+ 68. Kxa3 Kd7) 67. Qd3 $2 {[%emt 0:00:02]} ({White has to play} 67. Qa4 $18 {Strongly threatening a6.} Qa6 68. Qxc6+ Kf7 69. Qc7+ Kg6 70. b7) 67... Rh8 {[%emt 0:00:36]} 68. a6 {[%emt 0:00:51]} Ra8 $1 {[%emt 0:00:03]} 69. a7 {[%emt 0:00:01] And now Rh2 would win.} Nf3 {[%emt 0:00:35] Inhibits Rh2.} 70. Rc1 {[%emt 0:00:04]} Rh8 {[%emt 0:00:27][%cal Of3d4] Against Rh1} 71. Qa3 {[%emt 0:01:19][%cal Oc1h1]} Nxd4 $2 {[%emt 0:00:27][%mdl 8192] [#]} (71... Rh2+ $11 72. Ka1 Rh8) 72. Rh1 $3 $18 {[%emt 0:00:30][%mdl 512]} Rxh1 {[%emt 0:00:54]} (72... Ra8 73. Rh6+) 73. a8=Q {[%emt 0:00:11] Qe8+ would kill now.} Rh2+ {[%emt 0:00:41]} 74. Kb1 {[%emt 0:00:19]} Rh1+ {[%emt 0:00:36]} 75. Kb2 {[%emt 0:00:19] Intending Qe8+ and mate.} Rh2+ {[%emt 0:00:33]} 76. Kc1 {[%emt 0:00:44]} (76. Kc3 Nb5+ 77. Kb3 Rh3+ 78. Kb2 Rh2+ 79. Kc1 Rh1+ 80. Kd2 Rh2+ 81. Kd1 Rh1+ 82. Ke2 Nd4+ 83. Ke3 Nc2+ 84. Kd3 Nxa3) 76... Rh1+ {[%emt 0:00:40]} 77. Kd2 {[%emt 0:00:34] White wants to mate with Qe8+.} Nf3+ {[%emt 0:00:37]} 78. Kc2 {[%emt 0:01:04]} Rh2+ {[%emt 0:00:31]} 79. Kd1 $2 {[%emt 0:00:31]} (79. Kc3 $18 d4+ 80. Kb3) 79... Rh1+ $11 {[%emt 0:00:23]} 80. Ke2 $2 {[%emt 0:00:20][%mdl 8192]} (80. Kc2 $11 Nd4+ 81. Kd2 Qxa8 82. Qxa8 Kxe5 83. Qe8+ Ne6 84. b7) 80... Rh2+ $18 {[%emt 0:00:29]} 81. Kd1 {[%emt 0:00:39] Threatening mate with Qe8+. Really sharp!} Rh1+ {[%emt 0:00:32]} 82. Kc2 {[%emt 0:00:02] White threatens Qe8+ and mate.} Rh2+ $1 {[%emt 0:00:34]} 83. Kb3 {[%emt 0:00:40]} Nd4+ {[%emt 0:00:28]} 84. Kc3 {[%emt 0:00:37]} Nb5+ {[%emt 0:00:23] [#]} 85. Kd3 $1 {[%emt 0:00:29]} Rh3+ {[%emt 0:00:38]} 86. Kd2 {[%emt 0:00:14] Threatens to win with Qe8+.} Rh2+ {[%emt 0:00:34]} (86... Nxa3 87. Qxb7 Nc4+ 88. Ke2 Rh2+ 89. Ke1 Rh1+ 90. Kf2) 87. Ke1 {[%emt 0:00:09]} Rh1+ {[%emt 0:00:28]} 88. Ke2 {[%emt 0:00:54] Hoping for Qe8+.} Nd4+ {[%emt 0:00:31]} 89. Kd2 $2 {[%emt 0:00:42]} (89. Ke3 $18 Nc2+ 90. Kd3 Nxa3 91. Qxb7 Rh3+ 92. Ke2 Kxe5 93. Qxc6 Rh2+ 94. Kf1) 89... Nb3+ $2 {[%emt 0:00:30][%mdl 8192]} 90. Kc3 {[%emt 0:00:27]} Rh3+ {[%emt 0:00:31]} 91. Kb4 {[%emt 0:00:33]} Nd4 {[%emt 0:00:34]} 92. Qe8+ {[%emt 0:00:41]} (92. Qxb7 $2 Nc2+ 93. Ka5 Rxa3#) 92... Qe7 {[%emt 0:00:04]} 93. Qxe7+ {[%emt 0:00:18][%mdl 64] Remove Defender} (93. Qaa8 $2 {gets mated.} Nc2+ 94. Ka5 Ra3#) 93... Kxe7 {[%emt 0:00:01][%mdl 4096] Endgame KQ-KRN} 94. Qa7+ {[%emt 0:00:22]} Ke6 {[%emt 0:00:06]} 95. Qa2 {[%emt 0:00:38] aiming for b7.} Rh7 {[%emt 0:00:52]} 96. Ka5 {[%emt 0:00:42]} g3 {[%emt 0:00:52]} 97. Qb2 {[%emt 0:00:34]} Nb5 {[%emt 0:00:32]} (97... Kxe5 $142 98. b7 Rxb7 99. Qxb7 Kf4) 98. Ka6 {[%emt 0:00:28]} Rh2 {[%emt 0:01:00]} 99. Qa1 {[%emt 0:00:30]} Rh8 {[%emt 0:00:31]} 100. b7 {[%emt 0:00:26]} f4 {[%emt 0:00:32]} 101. Qf1 {[%emt 0:00:35]} Rf8 {[%emt 0:00:26]} 102. Qf3 $2 {[%emt 0:00:30]} (102. Qh3+ Kxe5 103. Qd7) 102... Nc7+ $2 {[%emt 0:00:35]} (102... Kxe5 $2 103. Qh5+ Ke4 104. Qh6 $18) (102... Nd4 $18 103. Qg4+ Nf5 104. Qxf4 Rg8) 103. Kb6 {[%emt 0:00:19] White mates.} Nb5 {[%emt 0:00:17]} 104. Qg4+ {[%emt 0:00:39]} Ke7 {[%emt 0:00:35]} 105. Qg7+ {[%emt 0:00:15]} Rf7 {[%emt 0:00:03]} 106. Qg5+ {[%emt 0:00:05] What a bad dream for Black.  Weighted Error Value: White=0.40/Black=0.39} 1-0

[Event "44th Chess Olympiad Women 2022"]
[Site "Chennai"]
[Date "2022.08.09"]
[Round "11.30"]
[White "Zairbek kyzy, Begimai"]
[Black "Aydin, Gulenay"]
[Result "0-1"]
[ECO "B11"]
[WhiteElo "1949"]
[BlackElo "2100"]
[Annotator "RC"]
[PlyCount "158"]
[EventDate "2022.07.29"]
[EventType "team-tourn"]
[EventCountry "IND"]
[SourceTitle "playchess.com"]
[Source "ChessBase"]
[SourceQuality "1"]
[WhiteTeam "Kyrgyzstan"]
[BlackTeam "Turkey"]
[WhiteTeamCountry "KGZ"]
[BlackTeamCountry "TUR"]
[TimeControl "40/5400+30:1800+30"]

1. e4 {[%emt 0:00:02]} c6 {[%emt 0:00:19]} 2. Nc3 {[%emt 0:00:07]} d5 {[%emt 0:00:36]} 3. d3 {[%emt 0:00:05]} dxe4 {[%emt 0:03:58]} 4. Nxe4 {[%emt 0:05:35]} Nf6 {[%emt 0:01:54]} 5. Be3 {[%emt 0:02:26]} Nbd7 {[%emt 0:03:00]} 6. Ne2 {[%emt 0:00:48]} g6 {[%emt 0:06:19]} 7. Qd2 {[%emt 0:01:49]} Bg7 {[%emt 0:10:10]} 8. c3 {[%emt 0:04:54]} O-O {[%emt 0:02:00]} 9. h3 {[%emt 0:01:44]} Nxe4 {[%emt 0:08:56]} 10. dxe4 {[%emt 0:00:13]} Nf6 {[%emt 0:01:14]} 11. Ng3 {[%emt 0:02:06]} Qxd2+ {[%emt 0:16:32]} 12. Kxd2 {[%emt 0:00:27]} h5 {[%emt 0:00:21]} 13. Bd3 {[%emt 0:02:10]} e5 {[%emt 0:03:08]} 14. Kc2 {[%emt 0:00:35]} Be6 {[%emt 0:00:28]} 15. a4 {[%emt 0:02:28]} Kh7 {[%emt 0:02:10]} 16. a5 {[%emt 0:00:34]} Rfd8 {[%emt 0:00:53]} 17. Rhd1 {[%emt 0:03:13]} Bh6 {[%emt 0:00:50]} 18. Nf1 {[%emt 0:01:56]} Nd7 {[%emt 0:02:14]} 19. f3 {[%emt 0:02:12]} Bxe3 {[%emt 0:04:02]} 20. Nxe3 {[%emt 0:00:07]} Kg7 {[%emt 0:02:24]} 21. b4 {[%emt 0:07:47]} h4 {[%emt 0:01:40]} 22. Rd2 {[%emt 0:02:59]} Kf6 {[%emt 0:03:44]} 23. c4 {[%emt 0:10:30]} c5 {[%emt 0:01:49]} 24. b5 {[%emt 0:00:25]} Ke7 {[%emt 0:01:01]} 25. Kc3 {[%emt 0:07:45]} Nf6 {[%emt 0:01:00]} 26. f4 {[%emt 0:06:50]} exf4 {[%emt 0:02:11]} 27. Nd5+ {[%emt 0:02:51]} Bxd5 {[%emt 0:00:55]} 28. cxd5 {[%emt 0:00:03]} Kd6 {[%emt 0:05:24]} 29. b6 {[%emt 0:07:20]} a6 {[%emt 0:00:44]} 30. Ra4 {[%emt 0:04:39]} g5 {[%emt 0:02:28]} 31. Re2 {[%emt 0:00:49]} Nd7 {[%emt 0:00:15]} 32. Rc2 {[%emt 0:00:52]} Ne5 {[%emt 0:00:35]} 33. Rd2 {[%emt 0:01:59]} f6 {[%emt 0:00:40]} 34. Be2 {[%emt 0:01:06]} Rh8 {[%emt 0:02:53]} 35. Ra1 {[%emt 0:00:42]} Rae8 {[%emt 0:01:47]} 36. Rb1 {[%emt 0:01:25]} Reg8 {[%emt 0:02:20]} 37. Rf1 {[%emt 0:00:47]} Rh7 {[%emt 0:00:46]} 38. Bd1 {[%emt 0:01:53]} Rc8 {[%emt 0:01:45]} 39. Ba4 {[%emt 0:03:46]} Re7 {[%emt 0:01:25]} 40. Rfd1 {[%emt 0:00:02]} Nf7 {[%emt 0:02:55]} 41. Bc2 {[%emt 0:32:48]} Ne5 {[%emt 0:31:27]} 42. Ba4 {[%emt 0:00:12]} Rg7 {[%emt 0:01:38]} 43. Rf1 {[%emt 0:00:41]} Rf8 {[%emt 0:00:00]} 44. Bd1 {[%emt 0:00:00]} Rh7 {[%emt 0:00:00]} 45. Bc2 {[%emt 0:00:00]} Rc8 {[%emt 0:00:00]} 46. Ba4 {[%emt 0:00:00]} Re7 {[%emt 0:00:00]} 47. Rfd1 {[%emt 0:00:00]} Nd7 {[%emt 0:00:00]} 48. Bc2 {[%emt 0:00:00]} Rce8 {[%emt 0:00:00]} 49. Kb2 {[%emt 0:00:00]} Re5 {[%emt 0:00:00]} 50. Rc1 {[%emt 0:00:00]} Rc8 {[%emt 0:00:00]} 51. Kc3 {[%emt 0:00:00]} Rce8 {[%emt 0:00:00]} 52. Kb2 {[%emt 0:00:00]} Rc8 {[%emt 0:04:36]} 53. Kc3 {[%emt 0:00:00]} Rce8 {[%emt 0:00:02]} 54. Kb2 {[%emt 0:00:00]} Rc8 {[%emt 0:00:55]} 55. Bb1 {[%emt 0:00:00]} Re7 {[%emt 0:00:24]} 56. Kc3 {[%emt 0:00:00]} Rce8 {[%emt 0:00:43]} 57. Kb2 {[%emt 0:00:00]} Ne5 {[%emt 0:00:30]} 58. Kc3 {[%emt 0:00:00]} Rc8 {[%emt 0:00:14]} 59. Bc2 {[%emt 0:00:00]} Rg8 {[%emt 0:00:30]} 60. Rf1 {[%emt 0:00:00]} Rge8 {[%emt 0:00:35]} 61. Ba4 {[%emt 0:00:00]} Nd7 {[%emt 0:00:11]} 62. Bc2 {[%emt 0:00:00]} Rc8 {[%emt 0:00:47]} 63. Rfd1 {[%emt 0:00:00]} Rg8 {[%emt 0:00:43]} 64. Rf1 {[%emt 0:02:03]} Rc8 {[%emt 0:00:20]} 65. Rfd1 {[%emt 0:00:13]} c4 {[%emt 0:00:52]} 66. Rd4 {[%emt 0:01:32]} Ne5 {[%emt 0:00:25]} 67. Ra1 {[%emt 0:02:26]} Rc5 {[%emt 0:00:02]} 68. Bd1 {[%emt 0:02:23]} Re8 {[%emt 0:00:17]} 69. Be2 {[%emt 0:00:26]} Rec8 {[%emt 0:00:19]} 70. Ra4 {[%emt 0:00:59]} Rb5 {[%emt 0:00:20]} 71. Ra3 {[%emt 0:06:07]} Rcc5 {[%emt 0:01:01]} 72. Bxc4 {[%emt 0:01:28]} Rc8 {[%emt 0:00:05]} 73. Ra2 {[%emt 0:01:04]} Rbc5 {[%emt 0:00:11]} 74. Ra4 {[%emt 0:00:12]} Rxc4+ {[%emt 0:00:29]} 75. Rdxc4 {[%emt 0:00:54]} Rxc4+ {[%emt 0:00:02]} 76. Rxc4 {[%emt 0:01:13]} Nxc4 {[%emt 0:00:01]} 77. Kxc4 {[%emt 0:01:02]} g4 {[%emt 0:00:05]} 78. Kd4 {[%emt 0:00:06]} f3 {[%emt 0:00:19]} 79. gxf3 {[%emt 0:00:04]} gxh3 {[%emt 0:00:07]} 0-1

[Event "44th Chess Olympiad Women 2022"]
[Site "Chennai"]
[Date "2022.08.09"]
[Round "11.30"]
[White "Abaeva, Aiana"]
[Black "Onur, Cigdem"]
[Result "1-0"]
[ECO "B41"]
[WhiteElo "1595"]
[BlackElo "2000"]
[Annotator "TA"]
[PlyCount "83"]
[EventDate "2022.07.29"]
[EventType "team-tourn"]
[EventCountry "IND"]
[SourceTitle "playchess.com"]
[Source "ChessBase"]
[SourceQuality "1"]
[WhiteTeam "Kyrgyzstan"]
[BlackTeam "Turkey"]
[WhiteTeamCountry "KGZ"]
[BlackTeamCountry "TUR"]
[TimeControl "40/5400+30:1800+30"]

{[%evp 11,82,11,16,-11,-17,-22,-20,-11,-21,-23,-12,-67,-62,-53,-30,-137,-143,-152,0,0,0,0,0,0,0,0,0,0,145,-132,-132,-133,-144,-144,90,-163,-164,-167,234,219,238,221,553,46,39,40,104,98,98,96,906,262,1500,1397,29982,29983,2068,2002,29991,29992,29992,29993,29993,29990,29993,29990,29994,29995,29996,29997,29997,29998,29999]} 1. e4 {[%emt 0:00:03]} c5 {[%emt 0:00:03]} 2. Nf3 {[%emt 0:00:10]} e6 {[%emt 0:00:03]} 3. d4 {[%emt 0:00:29]} cxd4 {[%emt 0:00:04]} 4. Nxd4 {[%emt 0:00:06]} a6 {[%emt 0:00:04]} 5. c4 {[%emt 0:02:20]} Nf6 {[%emt 0:00:05]} 6. Bd3 {[%emt 0:01:34]} Nc6 {[%emt 0:14:05]} 7. Bc2 {[%emt 0:21:09] B41: Sicilian: Kan Variation: 5 c4.} Qc7 {[%emt 0:18:06]} 8. O-O {[%emt 0:04:09] [#]} Nxd4 $146 {[%emt 0:29:40]} ({Predecessor:} 8... Nb4 9. Nd2 Nxc2 10. Qxc2 Be7 11. f4 d6 12. Qd3 O-O 13. Kh1 e5 14. Nf5 Bxf5 15. exf5 Rad8 {0-1 (56) Demidowicz,M (1961)-Kozak,M (2205) Szklarska Poreba 2006}) 9. Qxd4 {[%emt 0:00:09] The position is equal.} Ng4 {[%emt 0:09:00][%csl Gg4][%cal Rc7h2] Against e5} 10. g3 {[%emt 0:20:45]} h5 {[%emt 0:04:29] next ...h4 is good for Black.} 11. h4 {[%emt 0:05:16]} (11. Bd1 $11) 11... Bc5 {[%emt 0:00:58]} 12. Qc3 {[%emt 0:01:07]} Qb6 $40 {[%emt 0:08:53][%cal Rc5f2][%mdl 128] Black has some attack.} 13. Qxg7 {[%emt 0:13:08]} (13. Kg2 $11 {remains equal.}) 13... Bd4 $17 {[%emt 0:00:11]} 14. Qg5 {[%emt 0:00:58]} Bxb2 $2 {[%emt 0:04:52]} ({Black should try} 14... Bxf2+ $17 15. Kh1 Bxg3) 15. c5 $11 {[%emt 0:05:00]} Qb4 {[%emt 0:04:10]} 16. Bxb2 {[%emt 0:02:38]} Qxb2 {[%emt 0:00:16]} 17. Nd2 $1 {[%emt 0:00:05][%cal Bb1d2,Bd2c4,Bc4d6][%mdl 32]} Qxc2 {[%emt 0:01:20]} 18. Rac1 $1 {[%emt 0:00:19]} Qb2 {[%emt 0:00:36]} ({But not} 18... Qxa2 19. f3 Nf6 20. Qxf6 $18) 19. Nc4 {[%emt 0:00:15] Against Ne5} Qf6 {[%emt 0:00:10]} (19... Qd4 $1 $11) 20. Qd2 $2 {[%emt 0:03:21][%mdl 8192]} (20. f3 $1 $16 {[%cal Rf3g4] is necessary to keep the advantage.} Qxg5 21. hxg5) 20... Ne5 $17 {[%emt 0:00:46]} 21. Nd6+ {[%emt 0:00:21]} Kf8 {[%emt 0:01:38] Strongly threatening ...Nf3+.} 22. f4 {[%emt 0:00:21]} Rg8 $2 {[%emt 0:01:20]} (22... Nc6 $17 {keeps the pressure on.} 23. e5 Qg6) 23. Kh2 $2 {[%emt 0:00:28][%mdl 8192] White is much more active.} (23. fxe5 $16 {is forced if you want to stay better. Intending Qh6+ and mate.} Rxg3+ 24. Kh1 Qxh4+ 25. Qh2 Qxh2+ 26. Kxh2) 23... Ng4+ $19 {[%emt 0:00:15]} 24. Kh3 {[%emt 0:00:25]} Qg6 $4 {[%emt 0:00:51][%mdl 8192]} (24... a5 $19 {Hoping for ...Kg7.} 25. Kg2 Rg7) 25. f5 $18 {[%emt 0:00:34]} exf5 {[%emt 0:00:31]} 26. Rxf5 {[%emt 0:00:31] Dancing on a razor blade.} Nh6 $2 {[%emt 0:00:30] [#]} (26... f6) 27. Rg5 $2 {[%emt 0:02:19]} ({Only move:} 27. Qxh6+ $1 $18 {[%mdl 512]} Ke7 28. Rxf7+ Kd8 29. Rf8+ Kc7 30. Qxg6 Rxg6 31. Rd1) 27... Qe6+ $14 {[%emt 0:00:10]} 28. Kg2 {[%emt 0:01:13] aiming for Rf1.} Rxg5 {[%emt 0:00:47]} ({Better is} 28... b6 $14) 29. hxg5 $16 {[%emt 0:01:10]} Ng4 {[%emt 0:00:08] [#] And now ...b5 would win.} 30. Rf1 $1 {[%emt 0:00:52]} Ne5 {[%emt 0:00:32][%mdl 8192]} (30... b5 $16) 31. Qb2 $2 {[%emt 0:00:53]} (31. Rf6 Qe7 32. Qd5) 31... b5 $2 {[%emt 0:00:42]} (31... Kg8) 32. Rf5 $18 {[%emt 0:01:24][%mdl 64] Deflection} Ng6 {[%emt 0:00:39]} 33. Rxf7+ {[%emt 0:00:13]} Qxf7 {[%emt 0:00:12]} 34. Nxf7 {[%emt 0:00:05] Qf6 would kill now.} Kxf7 {[%emt 0:00:31]} 35. Qf6+ {[%emt 0:00:06][%mdl 64] Deflection. White mates.} Ke8 {[%emt 0:00:28]} 36. Qxg6+ {[%emt 0:00:03] KQ-KRB} Kd8 {[%emt 0:00:31]} 37. Qb6+ {[%emt 0:00:43]} Ke7 {[%emt 0:00:27]} 38. Qf6+ {[%emt 0:00:14]} Ke8 {[%emt 0:00:02]} 39. g6 {[%emt 0:00:12][%cal Bg5g6,Bg6g7][%mdl 32]} Bb7 {[%emt 0:00:08]} 40. g7 {[%emt 0:00:16][%cal Rg7g8]} Bxe4+ {[%emt 0:00:05]} 41. Kh2 {[%emt 0:30:05][%cal Rg7g8]} Bd5 {[%emt 0:30:12]} 42. Qf8# {[%emt 0:00:06] Weighted Error Value: White=0.75/Black=0.95} 1-0